bitfinex/quotes_BTCUSD_20240911
["timestamp","ask_amount","ask_price","bid_price","bid_amount"]
[1726022384090,0.00082,57008.0,57007.0,2.37574367]
[1726022384305,0.00082,57008.0,57007.0,2.72657767]
[1726022384528,0.00082,57008.0,57007.0,2.85028809]
[1726022384982,0.00082,57008.0,57007.0,2.92897678]
[1726022385200,0.0025164,57011.0,57010.0,1.58087786]
[1726022385429,0.0025164,57011.0,57010.0,1.68087786]
[1726022385733,0.0025164,57011.0,57010.0,1.71258448]
[1726022385941,0.0025164,57011.0,57010.0,1.90240876]
[1726022386609,0.0033344,57011.0,57010.0,2.26722376]
[1726022386824,0.0033344,57011.0,57010.0,2.36292376]
[1726022387048,4e-07,57011.0,57010.0,2.7316872]
[1726022387314,0.000819,57031.0,57030.0,1.58703148]
[1726022387524,0.000819,57031.0,57030.0,1.94893434]
[1726022387736,0.000819,57031.0,57030.0,2.58484054]
[1726022387949,0.000819,57031.0,57030.0,2.64484054]
[1726022388387,0.000819,57031.0,57030.0,2.64684054]
[1726022388599,0.000819,57031.0,57030.0,2.72724054]
[1726022389504,0.000819,57031.0,57030.0,2.74175602]
[1726022389771,1e-06,57031.0,57030.0,2.75375602]
[1726022389987,1e-06,57031.0,57030.0,2.74175602]
[1726022390212,1e-06,57031.0,57030.0,2.76975602]
[1726022390647,1e-06,57031.0,57030.0,2.74175602]
[1726022391338,1e-06,57031.0,57030.0,2.75575602]
[1726022391813,1e-06,57031.0,57030.0,2.76975602]
[1726022392967,1e-06,57031.0,57030.0,2.75575602]
[1726022393441,1e-06,57031.0,57030.0,2.76975602]
[1726022393656,1e-06,57031.0,57030.0,2.75575602]
[1726022394092,1e-06,57031.0,57030.0,2.76975602]
[1726022397381,0.0025157,57034.0,57032.0,2.02965748]
[1726022397607,0.0025157,57034.0,57032.0,2.50476721]
[1726022397830,0.0025157,57034.0,57032.0,2.51637962]
[1726022398742,0.0025157,57034.0,57032.0,2.51476494]
[1726022399864,0.0025157,57034.0,57032.0,2.52876494]
[1726022400313,0.52864418,57051.0,57039.0,1.77170263]
[1726022400539,0.52864418,57051.0,57039.0,2.07087218]
[1726022400990,0.52864418,57051.0,57039.0,2.08248459]
[1726022401239,0.00161468,57050.0,57039.0,2.08248459]
[1726022401377,0.000819,57051.0,57039.0,2.08248459]
[1726022401801,0.000819,57051.0,57039.0,2.09648459]
[1726022402013,0.00161468,57049.0,57039.0,2.09648459]
[1726022402205,0.0618,57046.0,57039.0,2.11048459]
[1726022403096,0.000819,57051.0,57041.0,1.67672548]
[1726022403097,0.0618,57050.0,57041.0,1.67672548]
[1726022403341,0.000819,57051.0,57041.0,2.32667498]
[1726022403575,4e-07,57042.0,57041.0,2.33828422]
[1726022403828,7e-07,57045.0,57044.0,2.02725048]
[1726022404077,7e-07,57045.0,57044.0,2.87688037]
[1726022404308,7e-07,57045.0,57044.0,2.88884678]
[1726022405003,7e-07,57045.0,57044.0,2.88846146]
[1726022405226,7e-07,57045.0,57044.0,2.88884678]
[1726022405701,7e-07,57045.0,57044.0,1.34761957]
[1726022406178,7e-07,57045.0,57044.0,1.36161957]
[1726022406394,7e-07,57045.0,57044.0,0.56040757]
[1726022406395,0.14631538,57045.0,57044.0,0.56040757]
[1726022406641,0.14631538,57045.0,57044.0,0.54640757]
[1726022406853,0.14631538,57045.0,57044.0,0.92501357]
[1726022407059,0.14631538,57045.0,57044.0,0.91101357]
[1726022407535,0.14631538,57045.0,57044.0,0.92501357]
[1726022407774,0.14631538,57045.0,57044.0,0.91101357]
[1726022408018,0.14631538,57045.0,57044.0,1.01701357]
[1726022408253,0.14631538,57045.0,57044.0,1.00301357]
[1726022408490,0.14631538,57045.0,57044.0,1.01701357]
[1726022408950,0.14631538,57045.0,57044.0,1.01101357]
[1726022409197,0.1447007,57045.0,57044.0,0.99701357]
[1726022409424,0.14631538,57045.0,57044.0,0.99701357]
[1726022409655,0.14631538,57045.0,57044.0,1.00601357]
[1726022410333,0.14631538,57045.0,57044.0,1.01501357]
[1726022411833,0.14631538,57045.0,57044.0,0.66440757]
[1726022412523,0.68247471,57045.0,57044.0,0.03828771]
[1726022412721,1.38367471,57045.0,57044.0,0.03828771]
[1726022412971,0.84815556,57045.0,57044.0,0.02670662]
[1726022413409,1.19875556,57045.0,57044.0,0.018]
[1726022413630,0.00161468,57035.0,57034.0,0.00870662]
[1726022413864,1.05420686,57035.0,57034.0,0.00870662]
[1726022414108,1.05420686,57035.0,57026.0,0.175357]
[1726022414109,0.87828468,57034.0,57033.0,0.00870662]
[1726022414331,0.35231868,57028.0,57025.0,0.00870662]
[1726022414577,0.13941468,57026.0,57025.0,0.00870662]
[1726022414796,0.31535486,57026.0,57025.0,0.00870662]
[1726022415013,0.49071286,57026.0,57025.0,0.00870662]
[1726022415248,0.31535486,57026.0,57025.0,0.18406762]
[1726022415526,0.31535486,57026.0,57025.0,0.00870662]
[1726022415711,0.31535486,57026.0,57025.0,0.18427848]
[1726022416160,0.31535486,57026.0,57025.0,0.00891748]
[1726022416403,0.31535486,57026.0,57025.0,0.18427848]
[1726022416854,0.31535486,57026.0,57025.0,0.00891748]
[1726022417097,0.49071286,57026.0,57025.0,0.02270662]
[1726022417333,0.84142986,57026.0,57025.0,0.02270662]
[1726022417572,0.84142986,57026.0,57025.0,0.00870662]
[1726022417784,1.19214686,57026.0,57025.0,0.00870662]
[1726022418022,0.84142986,57026.0,57025.0,0.00870662]
[1726022418256,0.84081518,57026.0,57025.0,0.02170662]
[1726022418467,0.84242986,57026.0,57025.0,0.00870662]
[1726022418675,0.84142986,57026.0,57025.0,0.00870662]
[1726022418906,0.84142986,57026.0,57025.0,0.01870662]
[1726022419375,0.84142986,57026.0,57025.0,0.01170662]
[1726022419815,0.84142986,57026.0,57025.0,0.01570662]
[1726022420037,0.84142986,57026.0,57025.0,0.01270662]
[1726022420258,1.19214686,57026.0,57025.0,0.01270662]
[1726022420479,1.19214686,57026.0,57025.0,0.01470662]
[1726022420725,0.84142986,57026.0,57025.0,0.00870662]
[1726022420971,1.19214686,57026.0,57025.0,0.00870662]
[1726022421668,0.001,57018.0,57017.0,0.01122232]
[1726022421902,1.05446986,57018.0,57017.0,0.0025157]
[1726022422133,1.19226986,57018.0,57017.0,0.01122232]
[1726022422354,0.49073786,57018.0,57017.0,0.01122232]
[1726022422850,0.84150386,57018.0,57017.0,0.01122232]
[1726022423060,0.84150386,57018.0,57017.0,0.01622232]
[1726022423523,1.19226986,57018.0,57017.0,0.01122232]
[1726022424360,1.19826986,57018.0,57017.0,0.01122232]
[1726022424578,1.19226986,57018.0,57017.0,0.01122232]
[1726022425016,1.19726986,57018.0,57017.0,0.01122232]
[1726022427254,1.54803586,57018.0,57017.0,0.01122232]
[1726022428620,1.19726986,57018.0,57017.0,0.01122232]
[1726022430457,1.19726986,57018.0,57017.0,0.0025157]
[1726022430664,1.54803586,57018.0,57017.0,0.0025157]
[1726022432417,1.577825,57018.0,57017.0,0.0025157]
[1726022432636,1.579825,57018.0,57017.0,0.0025157]
[1726022432857,1.577825,57018.0,57017.0,0.0025157]
[1726022435443,1.577825,57018.0,57017.0,0.0041497]
[1726022436988,1.578825,57018.0,57017.0,0.0041497]
[1726022438064,1.763925,57018.0,57017.0,0.0041497]
[1726022438336,1.929591,57018.0,57017.0,0.0041497]
[1726022438554,1.578825,57018.0,57017.0,0.0041497]
[1726022438753,1.95808417,57018.0,57017.0,0.0041497]
[1726022438995,1.60731817,57018.0,57017.0,0.0041497]
[1726022439617,1.60631817,57018.0,57017.0,0.0041497]
[1726022441763,1.60531817,57018.0,57017.0,0.0041497]
[1726022442912,1.22476303,57018.0,57017.0,0.0041497]
[1726022443129,1.14716303,57018.0,57017.0,0.0041497]
[1726022447855,0.79639703,57018.0,57017.0,0.0041497]
[1726022448068,1.14716303,57018.0,57017.0,0.0041497]
[1726022451472,1.52871817,57018.0,57017.0,0.0041497]
[1726022451668,1.95208417,57018.0,57017.0,0.0041497]
[1726022451878,1.60031817,57018.0,57017.0,0.0041497]
[1726022452315,1.60531817,57018.0,57017.0,0.0041497]
[1726022452534,1.60531817,57018.0,57017.0,0.0071497]
[1726022453694,1.65749062,57018.0,57017.0,0.0071497]
[1726022453915,1.60531817,57018.0,57017.0,0.0071497]
[1726022454140,1.60131817,57018.0,57017.0,0.0071497]
[1726022454370,1.60231817,57018.0,57017.0,0.0071497]
[1726022454583,1.60131817,57018.0,57017.0,0.0041497]
[1726022455002,1.60631817,57018.0,57017.0,0.0041497]
[1726022455684,1.66345739,57018.0,57017.0,0.0041497]
[1726022455895,1.66245739,57018.0,57017.0,0.0041497]
[1726022456116,1.61131817,57018.0,57017.0,0.0041497]
[1726022456335,1.66245701,57018.0,57017.0,0.0041497]
[1726022456571,1.61131817,57018.0,57017.0,0.0041497]
[1726022456784,1.6624616,57018.0,57017.0,0.0041497]
[1726022457897,1.61131817,57018.0,57017.0,0.0041497]
[1726022458109,1.66246157,57018.0,57017.0,0.0041497]
[1726022460516,1.53371817,57018.0,57017.0,0.0041497]
[1726022460734,1.09296303,57018.0,57017.0,0.0041497]
[1726022461672,0.21604803,57018.0,57017.0,0.0041497]
[1726022461847,0.74219703,57018.0,57017.0,0.0041497]
[1726022467460,0.79427386,57018.0,57017.0,0.0041497]
[1726022468307,1.14503986,57018.0,57017.0,0.0041497]
[1726022469585,1.525595,57018.0,57017.0,0.0041497]
[1726022469811,2.01940577,57018.0,57017.0,0.0041497]
[1726022470031,2.05917046,57018.0,57017.0,0.0041497]
[1726022470495,2.15917046,57018.0,57017.0,0.0041497]
[1726022470917,2.15717046,57018.0,57017.0,0.0051497]
[1726022471342,2.14617046,57018.0,57017.0,0.0051497]
[1726022471553,2.16017046,57018.0,57017.0,0.0051497]
[1726022471782,2.16217046,57018.0,57017.0,0.0051497]
[1726022472224,2.17617046,57018.0,57017.0,0.0061497]
[1726022473175,2.20366432,57018.0,57017.0,0.0061497]
[1726022474319,2.36108961,57018.0,57017.0,0.0061497]
[1726022474548,2.51857645,57018.0,57017.0,0.0061497]
[1726022475216,2.51857645,57018.0,57017.0,0.0051497]
[1726022475513,2.49057645,57018.0,57017.0,0.0041497]
[1726022475744,2.34008961,57018.0,57017.0,0.0061497]
[1726022475973,2.51158463,57018.0,57017.0,0.0061497]
[1726022476422,2.35408961,57018.0,57017.0,0.0061497]
[1726022476870,2.51158482,57018.0,57017.0,0.0061497]
[1726022477036,2.51158482,57018.0,57017.0,0.0051497]
[1726022477037,2.50458482,57018.0,57017.0,0.0051497]
[1726022477240,2.50758482,57018.0,57017.0,0.0061497]
[1726022477451,2.50658482,57018.0,57017.0,0.0061497]
[1726022478059,2.50657528,57018.0,57017.0,0.0061497]
[1726022478470,2.14920598,57018.0,57017.0,0.0061497]
[1726022478679,2.36161871,57018.0,57017.0,0.0061497]
[1726022480776,2.51910438,57018.0,57017.0,0.0061497]
[1726022481005,2.36161871,57018.0,57017.0,0.0061497]
[1726022481219,2.35861871,57018.0,57017.0,0.0051497]
[1726022481361,2.36061871,57018.0,57017.0,0.0051497]
[1726022481591,2.50710438,57018.0,57017.0,0.0051497]
[1726022481838,2.52110438,57018.0,57017.0,0.0061497]
[1726022482077,2.51810438,57018.0,57017.0,0.0051497]
[1726022482310,2.36061871,57018.0,57017.0,0.0051497]
[1726022482530,2.36361871,57018.0,57017.0,0.0061497]
[1726022482972,2.54860143,57018.0,57017.0,0.0061497]
[1726022483244,2.54660143,57018.0,57017.0,0.0061497]
[1726022483455,2.38911465,57018.0,57017.0,0.0061497]
[1726022483664,2.54660143,57018.0,57017.0,0.0061497]
[1726022484084,2.54760143,57018.0,57017.0,0.0061497]
[1726022484765,2.54860143,57018.0,57017.0,0.0061497]
[1726022484987,2.39111465,57018.0,57017.0,0.0061497]
[1726022485666,2.36362107,57018.0,57017.0,0.0061497]
[1726022487227,2.36162107,57018.0,57017.0,0.0061497]
[1726022487440,2.51909422,57018.0,57017.0,0.0061497]
[1726022487865,2.36162107,57018.0,57017.0,0.0061497]
[1726022488076,2.36262107,57018.0,57017.0,0.0061497]
[1726022488540,2.52009989,57018.0,57017.0,0.0061497]
[1726022488992,2.36262107,57018.0,57017.0,0.0061497]
[1726022489459,2.52009989,57018.0,57017.0,0.0061497]
[1726022490127,2.54759421,57018.0,57017.0,0.0061497]
[1726022490798,2.54859421,57018.0,57017.0,0.0061497]
[1726022491014,2.39111539,57018.0,57017.0,0.0061497]
[1726022491699,2.54866254,57018.0,57017.0,0.0061497]
[1726022492382,2.54766254,57018.0,57017.0,0.0061497]
[1726022493442,2.39011539,57018.0,57017.0,0.0061497]
[1726022493869,2.54766254,57018.0,57017.0,0.0061497]
[1726022494077,2.52016822,57018.0,57017.0,0.0061497]
[1726022494293,2.36362107,57018.0,57017.0,0.0061497]
[1726022495387,2.52113662,57018.0,57017.0,0.0061497]
[1726022497754,2.36362107,57018.0,57017.0,0.0061497]
[1726022498548,2.24511549,57018.0,57017.0,0.0061497]
[1726022498756,2.24611549,57018.0,57017.0,0.0061497]
[1726022499563,2.24511549,57018.0,57017.0,0.0061497]
[1726022500125,2.16763739,57018.0,57017.0,0.0061497]
[1726022500271,1.97911382,57018.0,57017.0,0.0061497]
[1726022500490,1.97911382,57018.0,57017.0,0.1508497]
[1726022500491,0.82681582,57018.0,57017.0,0.1508497]
[1726022500694,0.77569422,57018.0,57017.0,0.1508497]
[1726022500914,0.42492822,57018.0,57017.0,0.17206541]
[1726022501113,0.42492822,57018.0,57017.0,0.1508497]
[1726022501663,0.42192822,57018.0,57017.0,0.1710168]
[1726022502102,0.23254522,57018.0,57017.0,0.17872342]
[1726022502331,0.23254522,57018.0,57017.0,0.70509228]
[1726022502332,0.17594018,57018.0,57017.0,0.70509228]
[1726022502901,0.18255486,57018.0,57017.0,0.70509228]
[1726022503516,0.18555486,57018.0,57017.0,0.70609228]
[1726022503896,0.18255486,57018.0,57017.0,0.70509228]
[1726022504317,0.17755486,57018.0,57017.0,1.06186428]
[1726022504526,0.17855486,57018.0,57017.0,1.06886428]
[1726022504735,0.17855486,57018.0,57017.0,1.06186428]
[1726022505164,0.17855486,57018.0,57017.0,0.71609228]
[1726022505792,0.17694018,57018.0,57017.0,0.71609228]
[1726022506025,0.17855486,57018.0,57017.0,1.06686428]
[1726022506671,0.17855486,57018.0,57017.0,0.71609228]
[1726022507507,0.17855486,57018.0,57017.0,1.06686428]
[1726022509015,0.17855486,57018.0,57017.0,0.71609228]
[1726022509236,0.17694018,57018.0,57017.0,1.06686428]
[1726022509692,0.17694018,57018.0,57017.0,1.20862811]
[1726022510147,0.17694018,57018.0,57017.0,1.06686428]
[1726022512057,0.17694018,57018.0,57017.0,1.08144713]
[1726022514491,0.17694018,57018.0,57017.0,1.06686428]
[1726022514492,0.17855486,57018.0,57017.0,1.06686428]
[1726022517953,0.17694018,57018.0,57017.0,1.41763628]
[1726022518153,0.001,57018.0,57017.0,1.54063628]
[1726022518353,0.001,57018.0,57017.0,1.71462496]
[1726022519913,0.001,57018.0,57017.0,2.06539696]
[1726022520831,0.00261468,57018.0,57017.0,1.16686428]
[1726022521043,0.00261468,57018.0,57017.0,0.81609228]
[1726022521044,0.17855486,57018.0,57017.0,0.81609228]
[1726022521930,0.17855486,57018.0,57017.0,0.81009228]
[1726022522143,0.17755486,57018.0,57017.0,0.70509228]
[1726022522361,0.17755486,57018.0,57017.0,0.62929228]
[1726022522607,0.17755486,57018.0,57017.0,0.63329228]
[1726022522840,0.17755486,57018.0,57017.0,0.62829228]
[1726022523312,0.17755486,57018.0,57017.0,0.63329228]
[1726022524461,0.17755486,57018.0,57017.0,0.98406428]
[1726022524682,0.17755486,57018.0,57017.0,1.12526011]
[1726022525332,0.17755486,57018.0,57017.0,0.98406428]
[1726022527376,0.17755486,57018.0,57017.0,0.63329228]
[1726022527567,0.17755486,57018.0,57017.0,0.98406428]
[1726022528289,0.00161468,57019.0,57018.0,0.526149]
[1726022528514,0.00161468,57022.0,57021.0,0.53503748]
[1726022528764,0.17755486,57022.0,57021.0,0.88578448]
[1726022528987,0.17755486,57022.0,57021.0,0.55588157]
[1726022529205,0.17755486,57022.0,57021.0,0.02955071]
[1726022529206,0.35292486,57022.0,57021.0,0.02955071]
[1726022529429,0.70366586,57022.0,57021.0,0.02955071]
[1726022529659,0.175377,57020.0,57019.0,0.00870662]
[1726022529869,0.35293186,57020.0,57019.0,0.00870662]
[1726022530134,0.70368586,57020.0,57019.0,0.0208494]
[1726022530589,0.70368586,57020.0,57018.0,0.003]
[1726022530590,0.52775468,57019.0,57018.0,0.003]
[1726022530813,0.52776368,57018.0,57017.0,0.01285632]
[1726022531027,0.70370386,57018.0,57017.0,0.01285632]
[1726022531673,0.35293786,57018.0,57017.0,0.01285632]
[1726022531891,0.17755486,57018.0,57017.0,0.01285632]
[1726022532113,0.17755486,57018.0,57017.0,0.27550624]
[1726022532334,0.17755486,57018.0,57017.0,0.25455318]
[1726022532546,0.17755486,57018.0,57017.0,0.27950624]
[1726022532757,0.17755486,57018.0,57017.0,0.63027824]
[1726022533032,0.17755486,57018.0,57017.0,0.27950624]
[1726022534537,0.35293786,57018.0,57017.0,0.04280938]
[1726022534758,0.70370386,57018.0,57017.0,0.04280938]
[1726022534977,0.70370386,57018.0,57017.0,0.02185632]
[1726022535632,0.35293786,57018.0,57017.0,0.02185632]
[1726022536277,0.17755486,57018.0,57017.0,0.04280938]
[1726022536740,0.17755486,57018.0,57017.0,0.21819538]
[1726022536954,0.17755486,57018.0,57017.0,0.21840624]
[1726022537156,0.17755486,57018.0,57017.0,0.62987824]
[1726022537582,0.17755486,57018.0,57017.0,0.27910624]
[1726022538884,0.17755486,57018.0,57017.0,0.62987824]
[1726022539346,0.17755486,57018.0,57017.0,0.27910624]
[1726022540438,0.17755486,57018.0,57017.0,0.62987824]
[1726022541200,0.17594018,57018.0,57017.0,1.33142224]
[1726022542294,0.00161468,57023.0,57022.0,0.93776286]
[1726022542611,0.17755486,57023.0,57022.0,0.95868789]
[1726022542823,0.17594018,57023.0,57022.0,0.95868789]
[1726022543042,0.827484,57032.0,57031.0,0.18426048]
[1726022543043,0.4768,57032.0,57031.0,0.18426048]
[1726022543241,0.4768,57032.0,57031.0,0.53494648]
[1726022543479,0.4768,57032.0,57031.0,0.69857151]
[1726022543698,0.47841468,57032.0,57031.0,0.69857151]
[1726022544537,0.47841468,57032.0,57031.0,1.04925751]
[1726022544972,0.47841468,57032.0,57031.0,1.05725751]
[1726022545202,0.47841468,57032.0,57031.0,1.06625751]
[1726022545894,0.00161468,57032.0,57031.0,1.06625751]
[1726022546539,0.00161468,57035.0,57034.0,0.88558748]
[1726022546964,0.02748274,57038.0,57037.0,0.18424148]
[1726022547175,0.2050376,57038.0,57037.0,0.18424148]
[1726022547616,0.2050376,57038.0,57037.0,0.20504531]
[1726022547836,0.2050376,57038.0,57037.0,0.02972131]
[1726022548284,0.2050376,57038.0,57037.0,0.20504531]
[1726022549380,0.2050376,57038.0,57037.0,0.20604531]
[1726022549840,0.2050376,57038.0,57037.0,0.20904531]
[1726022550507,0.20342292,57038.0,57037.0,0.20904531]
[1726022550733,0.2050376,57038.0,57037.0,0.20904531]
[1726022550952,0.20342292,57038.0,57037.0,0.20904531]
[1726022552395,0.2050376,57038.0,57037.0,0.20904531]
[1726022552628,1.1458446,57038.0,57037.0,0.02480383]
[1726022552836,1.1458446,57038.0,57037.0,0.004]
[1726022553305,1.73437381,57038.0,57037.0,0.004]
[1726022553550,1.68181795,57038.0,57037.0,0.004]
[1726022553766,1.73437381,57038.0,57037.0,0.004]
[1726022554413,1.68181795,57038.0,57037.0,0.004]
[1726022556805,1.70929996,57038.0,57037.0,0.004]
[1726022558379,1.17332661,57038.0,57037.0,0.004]
[1726022562289,1.17332661,57038.0,57037.0,0.005636]
[1726022563840,0.23251961,57038.0,57037.0,0.005636]
[1726022564048,0.23251961,57038.0,57037.0,0.62587852]
[1726022564049,0.2050376,57038.0,57037.0,0.62587852]
[1726022564257,0.17755486,57038.0,57037.0,0.62587852]
[1726022564461,0.17755486,57038.0,57037.0,0.97652752]
[1726022564954,0.17594018,57038.0,57037.0,1.32717652]
[1726022565394,0.00161468,57040.0,57039.0,1.22743986]
[1726022565625,0.000817,57044.0,57043.0,0.53483548]
[1726022565849,0.000817,57044.0,57043.0,1.31475948]
[1726022566309,0.000817,57044.0,57043.0,1.3354325]
[1726022566968,0.006817,57044.0,57043.0,0.9848205]
[1726022567188,0.00243168,57044.0,57043.0,0.9848205]
[1726022567617,0.05576511,57056.0,57046.0,0.00870662]
[1726022567618,0.02747306,57056.0,57046.0,0.00870662]
[1726022567843,0.1348196,57063.0,57046.0,0.00870662]
[1726022567844,0.15737483,57089.0,57074.0,0.175211]
[1726022568081,0.28362691,57134.0,57055.0,0.71315553]
[1726022568082,0.05494941,57149.0,57139.0,0.27841063]
[1726022568305,0.1571361,57167.0,57139.0,0.27841063]
[1726022568306,0.0241664,57193.0,57190.0,0.03]
[1726022568583,0.0301297,57193.0,57192.0,1.14978821]
[1726022568811,0.0061253,57202.0,57198.0,1.37802786]
[1726022569017,0.0021594,57225.0,57224.0,0.09021086]
[1726022569267,0.0021594,57225.0,57224.0,1.2822481]
[1726022569534,0.0021594,57248.0,57247.0,0.03]
[1726022569738,1.85281258,57248.0,57247.0,0.03]
[1726022569956,0.17809958,57248.0,57247.0,0.03]
[1726022570195,0.17809958,57248.0,57247.0,0.02047795]
[1726022570639,0.17809958,57248.0,57242.0,0.07646157]
[1726022570865,0.44879391,57243.0,57242.0,0.07646157]
[1726022571123,0.02978914,57237.0,57227.0,0.52782518]
[1726022571336,0.83800954,57243.0,57219.0,0.05097199]
[1726022571337,0.02978914,57227.0,57219.0,0.05097199]
[1726022571561,0.0632,57232.0,57218.0,0.07613631]
[1726022571562,0.41900477,57219.0,57218.0,0.31111717]
[1726022571804,0.59494495,57219.0,57218.0,0.06021086]
[1726022572014,0.0632,57232.0,57222.0,0.03]
[1726022572253,0.0827,57236.0,57222.0,0.06221086]
[1726022572254,0.41900477,57223.0,57222.0,0.06221086]
[1726022572489,0.41900477,57223.0,57215.0,0.1]
[1726022572490,0.41900477,57238.0,57236.0,0.03]
[1726022572733,0.41911167,57250.0,57244.0,0.03]
[1726022573375,0.17594018,57247.0,57245.0,0.52782518]
[1726022573596,0.17594018,57247.0,57246.0,0.06021086]
[1726022574261,0.17594018,57247.0,57246.0,0.06221086]
[1726022574484,0.0001069,57250.0,57247.0,0.06021086]
[1726022574704,0.17809958,57248.0,57247.0,0.06021086]
[1726022575174,0.0001069,57250.0,57249.0,0.03021086]
[1726022575397,0.0001069,57250.0,57249.0,0.06021086]
[1726022575618,0.0001069,57250.0,57249.0,0.58423686]
[1726022575847,0.0001069,57250.0,57249.0,0.68623686]
[1726022576316,0.0001069,57250.0,57249.0,1.03558786]
[1726022576776,0.02978914,57262.0,57252.0,0.03]
[1726022577023,0.41900477,57253.0,57250.0,0.03]
[1726022577250,0.00436709,57252.0,57251.0,0.5421453]
[1726022577488,0.00436709,57252.0,57251.0,0.01432012]
[1726022577489,0.02978914,57252.0,57251.0,0.01432012]
[1726022577706,0.03415659,57252.0,57251.0,0.01432012]
[1726022577931,0.03415659,57252.0,57230.0,0.06]
[1726022577932,0.02978914,57242.0,57230.0,0.06]
[1726022578165,0.0632,57246.0,57231.0,0.01197963]
[1726022578166,0.02978914,57236.0,57231.0,0.01197963]
[1726022578373,0.41900477,57238.0,57230.0,0.03]
[1726022578582,0.41900477,57238.0,57232.0,0.01197963]
[1726022578790,0.41900477,57238.0,57231.0,0.00021086]
[1726022579244,0.41900477,57238.0,57233.0,0.03]
[1726022580114,0.17594018,57237.0,57233.0,0.03]
[1726022580370,0.17594018,57237.0,57236.0,0.06021086]
[1726022580600,0.17594018,57237.0,57236.0,0.04197963]
[1726022581254,0.17594018,57237.0,57236.0,0.01197963]
[1726022581472,0.17594018,57237.0,57236.0,0.03]
[1726022581683,0.17594018,57237.0,57236.0,0.01197963]
[1726022581923,0.17594018,57237.0,57236.0,0.04197963]
[1726022582991,0.17594018,57237.0,57236.0,0.01197963]
[1726022583206,0.17594018,57237.0,57236.0,0.03]
[1726022583408,0.17561174,57237.0,57236.0,0.03]
[1726022583988,0.17561174,57237.0,57236.0,0.04197963]
[1726022583989,0.17594018,57237.0,57236.0,0.04197963]
[1726022584339,0.349324,57254.0,57243.0,0.03]
[1726022584546,0.17594018,57245.0,57243.0,0.03]
[1726022584759,0.17594018,57251.0,57247.0,0.03]
[1726022585182,0.17594018,57251.0,57248.0,0.01211385]
[1726022585408,0.17594018,57251.0,57247.0,0.03]
[1726022585832,0.174677,57249.0,57247.0,0.03]
[1726022586033,0.17594018,57248.0,57247.0,0.03]
[1726022586200,0.0827,57252.0,57247.0,0.03]
[1726022586403,0.0827,57252.0,57247.0,0.04211385]
[1726022586404,0.17594018,57248.0,57247.0,0.04211385]
[1726022586816,0.35061818,57248.0,57247.0,0.04211385]
[1726022587030,0.17594018,57248.0,57247.0,0.03]
[1726022587317,0.17594018,57248.0,57247.0,0.04208716]
[1726022587568,0.0632,57255.0,57252.0,0.03]
[1726022587846,0.0632,57255.0,57247.0,0.01208716]
[1726022587847,0.0001,57259.0,57258.0,0.03]
[1726022588116,0.0021594,57271.0,57263.0,0.03]
[1726022588345,0.17594018,57270.0,57265.0,0.03]
[1726022589053,0.174614,57269.0,57267.0,0.52782518]
[1726022589312,0.1767684,57271.0,57268.0,0.52782518]
[1726022589546,0.0021594,57271.0,57270.0,0.03]
[1726022590233,0.0021594,57271.0,57270.0,0.77128847]
[1726022590481,0.004954,57277.0,57276.0,0.585779]
[1726022590709,0.406955,57287.0,57276.0,0.03]
[1726022590936,0.17594018,57286.0,57283.0,0.03]
[1726022591375,0.00013,57292.0,57287.0,0.09]
[1726022591584,0.17675718,57288.0,57287.0,0.03]
[1726022591854,0.17675718,57288.0,57287.0,0.04183878]
[1726022591855,0.35131318,57288.0,57287.0,0.04183878]
[1726022592062,0.35131318,57288.0,57287.0,0.03]
[1726022592504,1.04953918,57288.0,57283.0,0.03]
[1726022592731,0.17594018,57287.0,57283.0,0.03]
[1726022592953,0.17594018,57287.0,57252.0,0.349329]
[1726022592954,0.17594018,57286.0,57276.0,0.03]
[1726022593181,0.174577,57281.0,57280.0,0.52782518]
[1726022593386,0.17594018,57281.0,57276.0,0.03]
[1726022593609,0.41982177,57288.0,57276.0,0.03]
[1726022593610,0.17594018,57280.0,57277.0,0.52782518]
[1726022593825,0.523761,57278.0,57277.0,0.01183583]
[1726022594054,1.12947518,57278.0,57277.0,0.01183583]
[1726022594288,0.174614,57269.0,57268.0,0.03]
[1726022594559,0.17594018,57269.0,57268.0,0.03]
[1726022595005,0.35055418,57269.0,57268.0,0.03]
[1726022595458,0.35055418,57269.0,57264.0,0.03]
[1726022595459,0.349235,57268.0,57264.0,0.03]
[1726022595668,0.174623,57266.0,57265.0,0.03]
[1726022595909,0.41900477,57285.0,57267.0,0.06]
[1726022596105,0.349187,57276.0,57268.0,0.03]
[1726022596334,0.174614,57269.0,57268.0,0.03]
[1726022596547,0.174614,57269.0,57267.0,0.03]
[1726022596548,0.174617,57268.0,57267.0,0.03]
[1726022596795,0.17594018,57269.0,57267.0,0.03]
[1726022597009,0.35055518,57269.0,57267.0,0.03]
[1726022597214,0.17594018,57269.0,57268.0,0.03984087]
[1726022597424,0.17594018,57269.0,57268.0,0.03]
[1726022598158,1.29340295,57269.0,57268.0,0.00984087]
[1726022598372,1.81724595,57269.0,57268.0,0.00984087]
[1726022598629,1.81724595,57269.0,57248.0,0.03]
[1726022598630,0.59494495,57269.0,57248.0,0.03]
[1726022598893,0.41900477,57249.0,57235.0,0.03]
[1726022599097,0.0806,57250.0,57236.0,0.03]
[1726022599098,0.524136,57237.0,57236.0,0.03]
[1726022599335,0.0806,57250.0,57237.0,0.03]
[1726022599336,0.524129,57238.0,57237.0,0.03]
[1726022599790,0.0806,57250.0,57247.0,0.03]
[1726022599791,0.349357,57248.0,57247.0,0.03]
[1726022600015,0.524035,57248.0,57247.0,0.03]
[1726022600235,0.174678,57248.0,57247.0,0.03]
[1726022600460,0.524035,57248.0,57247.0,0.03]
[1726022600673,0.174682,57247.0,57246.0,0.03]
[1726022600897,0.174677,57249.0,57247.0,0.03]
[1726022601141,0.49960477,57259.0,57251.0,0.03]
[1726022601364,0.49960477,57259.0,57254.0,0.03]
[1726022601365,0.17594018,57259.0,57254.0,0.03]
[1726022601587,0.174657,57255.0,57254.0,0.03]
[1726022601808,0.17594018,57258.0,57254.0,0.03]
[1726022601809,0.174655,57256.0,57254.0,0.03]
[1726022602272,0.17594018,57258.0,57254.0,0.03]
[1726022602273,0.174657,57255.0,57254.0,0.03]
[1726022602491,0.17594018,57258.0,57254.0,0.03]
[1726022602732,0.35058918,57258.0,57254.0,0.03]
[1726022602948,0.174653,57257.0,57254.0,0.03]
[1726022603229,0.17594018,57257.0,57254.0,0.03]
[1726022603455,0.349289,57260.0,57253.0,0.03]
[1726022603456,0.17466,57254.0,57253.0,0.03]
[1726022603648,0.35060018,57254.0,57253.0,0.03]
[1726022604101,0.349256,57265.0,57255.0,0.03]
[1726022604308,0.174648,57258.0,57257.0,0.01254862]